Cogmind - Beta 12 --- EXPLORER MODE // 2024.01.11 @ 00:07:28 Player: viper Result: Destroyed by D-53 Grenadier with Mini Grenade Launcher Performance ------------- Evolutions (0) 0 Regions Visited (2) 400 Robots Destroyed (2) 10 Value Destroyed (32) 32 Prototype IDs (0) 0 Alien Tech Used (0) 0 Bonus (0) 0 TOTAL SCORE: 442 Bonus ------- None Cogmind --------- Core Integrity 0/250 Matter 240/300 Energy 100/100 System Corruption 2% Temperature Cool (0) Movement Core (200) Ox3 Location -10/Mines Parts ------- > --- POWER (1) -------- (None) > --- PROPULSION (2) --- (None) > --- UTILITY (2) ------ Medium Storage Unit > --- WEAPON (3) ------- (None) > --- INVENTORY (10) --- Light Ion Engine Medium Matter Pod (1) Medium Matter Pod (0) Sensor Array Signal Interpreter Core Shielding Peak State ------------ > --- POWER ------------ Light Ion Engine > --- PROPULSION ------- Light Treads Light Treads > --- UTILITY ---------- Medium Storage Unit Terrain Scanner > --- WEAPON ----------- Assault Rifle Light Assault Rifle Light Assault Rifle > --- INVENTORY -------- Light Ion Engine Core Shielding [Rating: 8] Favorites ----------- Power Light Ion Engine Engine Light Ion Engine Propulsion Light Treads Treads Light Treads Utility Medium Storage Unit Device Terrain Scanner Storage Medium Storage Unit Weapon Light Assault Rifle Ballistic Gun Light Assault Rifle Launcher Grenade Launcher Build | -11 -10 -10 ------- Run | Jun Mat Min Slots Evolved 1 | . 1 . Power . | . . . Propulsion . | . . . Utility . | . . . Weapon 1 | . 1 . Parts Attached 10 | 7 1 2 Power 2 | 1 . 1 Engine 2 | 1 . 1 Core . | . . . Reactor . | . . . Propulsion 2 | 2 . . Treads 2 | 2 . . Leg . | . . . Wheel . | . . . Hover . | . . . Flight . | . . . Utility 2 | 2 . . Device 1 | 1 . . Storage 1 | 1 . . Processor . | . . . Hackware . | . . . Protection . | . . . Artifact . | . . . Weapon 4 | 2 1 1 Energy Gun . | . . . Energy Cannon . | . . . Ballistic Gun 3 | 2 1 . Ballistic Cannon . | . . . Launcher 1 | . . 1 Special Weapon . | . . . Impact Weapon . | . . . Slashing Weapon . | . . . Piercing Weapon . | . . . Special Melee Weapon . | . . . Unidentified Prototypes . | . . . Parts Lost 9 | . . 9 Power 2 | . . 2 Propulsion 2 | . . 2 Utility 1 | . . 1 Weapon 4 | . . 4 Highest Loss Streak 9 | . . 9 To Critical Strikes . | . . . Average Slot Usage (%) 95 | . 100 93 Engine 11 | . 12 10 Treads 24 | . 25 23 Device 11 | . 12 10 Storage 12 | . 12 12 Ballistic Gun 35 | . 37 33 Naked Turns . | . . . Heaviest Build 18 | 17 18 18 Greatest Support 40 | 40 40 40 Greatest Overweight (x) 1 | 1 . . Average Overweight (x) . | . . . Largest Inventory Capacity 10 | 10 10 10 Average Capacity 9 | 8 10 10 Most Carried 8 | 3 8 8 Average Carried 5 | 1 3 7 Final Capacity 10 | 10 10 10 Final Carried 8 | 3 8 6 Class Distribution -------------------- 100% | Hacker-Skirmisher Dominant Class ---------------- Hacker-Skirmisher | -10/Materials Hacker-Skirmisher | -10/Mines Resources | -11 -10 -10 ----------- Run | Jun Mat Min Matter Collected 311 | 242 59 10 Remotely . | . . . Salvage Created 104 | . 48 56 Parts 7 | . 7 . Haulers Intercepted . | . . . Recyclers Shooed . | . . . Parts Field Recycled . | . . . Retrieved Matter . | . . . Parts Self-Destructed . | . . . Prevented . | . . . Kills | -11 -10 -10 ------- Run | Jun Mat Min Combat Hostiles Destroyed 4 | . . 4 Guns 4 | . . 4 Classes Destroyed 2 | . 1 1 Watcher 2 | . 2 . Assembled 4 | . . 4 Best Kill Streak 4 | . 2 4 Combat Bots Only 4 | . . 4 Max Kills in Single Turn 2 | . 1 2 Gunslinging 1 | . . 1 Exploded . | . . . Melee . | . . . Uniques/NPCs Destroyed . | . . . Combat | -11 -10 -10 -------- Run | Jun Mat Min Damage Taken 1014 | . . 1014 Core 261 | . . 261 Absorbed by Shields . | . . . Core Remaining (%) 100 | 100 . . Volleys Fired 21 | . 4 17 Largest 3 | . 3 3 Hottest 60 | . 60 60 Shots Fired 56 | . 12 44 Gun 53 | . 12 41 Cannon . | . . . Launcher 3 | . . 3 Special . | . . . Kinetic 53 | . 12 41 Thermal . | . . . Explosive 3 | . . 3 Electromagnetic . | . . . Robot Hit Streak 12 | . 3 12 Robot Miss Streak 2 | . 2 1 Penetration Max . | . . . Secondary Targets 3 | . . 3 Max Gunslinging Chain 2 | . . 2 Shots Hit Robots 45 | . 7 38 Core Hits 29 | . 4 25 Critical Kills . | . . . Critical Parts Destroyed . | . . . Critical Strikes . | . . . Melee Attacks . | . . . Impact . | . . . Slashing . | . . . Piercing . | . . . Sneak Attacks . | . . . Combat Hostiles . | . . . Follow-up Attacks . | . . . Damage Inflicted 512 | . 67 445 Guns 396 | . 67 329 Cannons . | . . . Explosions 116 | . . 116 Melee . | . . . Ramming . | . . . Kinetic 396 | . 67 329 Thermal . | . . . Explosive 116 | . . 116 Electromagnetic . | . . . Impact . | . . . Slashing . | . . . Piercing . | . . . Highest Corruption 2 | . . 2 Average Corruption 2 | . . 2 Corruption Purged . | . . . Corruption Blocked . | . . . Effects 1 | . . 1 Data Loss (minor) 1 | . . 1 Overload Shots . | . . . Overflow Damage . | . . . Projectiles . | . . . Explosions . | . . . Melee . | . . . Knockbacks . | . . . Impact . | . . . Kinetic . | . . . Secondary . | . . . Self-Inflicted Damage . | . . . Shots . | . . . Rammed . | . . . Targets Rammed . | . . . Kicked . | . . . Crushed . | . . . Highest Temperature 100 | . 20 100 Average Temperature 45 | . 13 52 Received Heat Transfer 100 | . . 100 Siege Activations . | . . . Robots Corrupted . | . . . Combat Hostiles . | . . . Parts Fried . | . . . Impact Corruptions . | . . . Robots Melted . | . . . Combat Hostiles . | . . . Parts Melted . | . . . Heat Transferred . | . . . Parts Sabotaged . | . . . Parts Stolen . | . . . Parts Stripped . | . . . Power Chain Reactions . | . . . Missiles Intercepted . | . . . Alert | -11 -10 -10 ------- Run | Jun Mat Min Peak Influence 29 | . 29 8 Initial 7 | . . 7 Average 5 | . 7 6 Maximum Alert Level . | . . . Low Security (%) 100 | 100 100 100 Level 1 . | . . . Level 2 . | . . . Level 3 . | . . . Level 4 . | . . . Level 5 . | . . . High Security . | . . . Max Security . | . . . Squads Dispatched . | . . . Investigation . | . . . Extermination . | . . . Reinforcement . | . . . Assault . | . . . Garrison . | . . . Intercept . | . . . Searches Triggered . | . . . Construction Impeded . | . . . Haulers Reinforced . | . . . Active Scanning Responses . | . . . Cargo Convoy Interrupts . | . . . Stealth | -11 -10 -10 --------- Run | Jun Mat Min Distress Signals 1 | . 1 . Communications Jammed . | . . . Distress Signals . | . . . Times Spotted 23 | . 2 21 Peak Tracking Total 11 | . 2 11 Tactical Retreats 3 | . 1 2 Traps | -11 -10 -10 ------- Run | Jun Mat Min Traps Triggered . | . . . Indirectly . | . . . Trap Hack Attempts . | . . . Triggered . | . . . Disarmed . | . . . Reprogrammed . | . . . Reused . | . . . Traps Extracted . | . . . Installed . | . . . Triggered . | . . . Machines | -11 -10 -10 ---------- Run | Jun Mat Min Machines Disabled . | . . . Max in Single Turn . | . . . Machines Repaired . | . . . Machines Sabotaged . | . . . Overloaded Fab Kills . | . . . Hacking | -11 -10 -10 --------- Run | Jun Mat Min Machines Accessed . | . . . Terminals . | . . . Fabricators . | . . . Repair Stations . | . . . Recycling Units . | . . . Scanalyzers . | . . . Garrison Access . | . . . Total Hacks . | . . . Successful . | . . . Failed . | . . . Catastrophic . | . . . Database Lockouts . | . . . Manual . | . . . Terminals . | . . . Fabricators . | . . . Repair Stations . | . . . Recycling Units . | . . . Scanalyzers . | . . . Garrison Access . | . . . Terminal Hacks . | . . . Fabricator Hacks . | . . . Repair Station Hacks . | . . . Recycling Unit Hacks . | . . . Scanalyzer . | . . . Garrison Access Hacks . | . . . Unauthorized Hacks . | . . . Terminals . | . . . Fabricators . | . . . Repair Stations . | . . . Recycling Units . | . . . Scanalyzers . | . . . Garrison Access . | . . . Data Cores Recovered . | . . . Used . | . . . Hacking Detections . | . . . Full Trace Events . | . . . Feedback Events . | . . . Feedback Blocked . | . . . Robot Schematics Acquired . | . . . Robots Built . | . . . Authchips . | . . . Time . | . . . Total Robot Build Rating . | . . . Part Schematics Acquired . | . . . Parts Built . | . . . Authchips . | . . . Time . | . . . Total Part Build Rating . | . . . Parts Repaired . | . . . Time . | . . . Parts Recycled . | . . . Recycled Matter . | . . . Retrieved Matter . | . . . Retrieved Components . | . . . Parts Scanalyzed . | . . . Part Schematics Acquired . | . . . Parts Damaged . | . . . Bothacking | -11 -10 -10 ------------ Run | Jun Mat Min Used RIF Installer . | . . . Robots Hacked . | . . . Non-combat . | . . . Combat . | . . . Robot Hacks Applied . | . . . Relay Couplers Released . | . . . Fabnet Peak Effective % . | . . . Robots Rewired . | . . . Allies Hacked . | . . . Hacks Repelled . | . . . Allies | -11 -10 -10 -------- Run | Jun Mat Min Total Allies . | . . . Largest Group . | . . . Highest-Rated Group . | . . . Highest-Rated Ally . | . . . Total Orders . | . . . Ally Attacks . | . . . Total Damage . | . . . Kills . | . . . Allies Corrupted . | . . . Allies Melted . | . . . Intel | -11 -10 -10 ------- Run | Jun Mat Min Robot Analysis Total . | . . . Derelict Logs Recovered . | . . . Drone Launches . | . . . Drone Recoveries . | . . . Exploration | -11 -10 -10 ------------- Run | Jun Mat Min Turns Passed 392 | 81 108 203 Spaces Moved 193 | 53 57 83 Core 16 | 16 . . Treads 177 | 37 57 83 Legs . | . . . Wheels . | . . . Hover . | . . . Flight . | . . . Fastest Speed 50 | 50 160 160 Average Speed 151 | 129 160 160 Slowest Speed 160 | 160 160 160 Overloaded Moves . | . . . Propulsion Burnouts . | . . . Robots Hopped . | . . . Cave-ins Triggered . | . . . Exploration Rate (%) 14 | 4 14 25 Regions Visited 2 Branch Regions 1 Pre-discovered Areas . | . . . Known Exits Taken 2 | 1 1 . Unknown Exits Taken . | . . . Scrap Searched . | . . . Spaces Dug . | . . . Terrain Destroyed 12 | . . 12 Melee . | . . . Projectile . | . . . AOE 12 | . . 12 Terrain Rammed . | . . . Walls Destroyed . | . . . Machines Disabled . | . . . Actions | -11 -10 -10 --------- Run | Jun Mat Min Total 253 | 62 67 124 Wait 22 | . . 22 Move 191 | 52 56 83 Hop . | . . . Pick Up 9 | 3 6 . Fast Attach 7 | 7 . . Attach 3 | . 1 2 Detach . | . . . Swap . | . . . Drop . | . . . Fire 21 | . 4 17 Melee . | . . . Ram . | . . . Kick . | . . . Crush . | . . . Escape Stasis . | . . . Rewire . | . . . Trap . | . . . Miscellaneous . | . . . Route ------- -11/Junkyard -10/Materials -10/Mines History --------- Turn | Location | Event 9 | -11/Junkyard | Identified exit to Materials 9 | -11/Junkyard | Discovered exit to Materials (range 16) 82 | -11/Junkyard | Entered Materials 82 | -10/Materials | Evolved 1 slot: Weapon x1 118 | -10/Materials | Identified exit to Mines 118 | -10/Materials | Discovered exit to Mines (range 15) 190 | -10/Materials | Entered Mines 191 | -10/Mines | Met a Derelict bent on vengeance 307 | -10/Mines | Assembled infested the area 312 | -10/Mines | Build established: Hacker-Skirmisher 312 | -10/Mines | Assisted by a Guerilla fighting off Assembled 386 | -10/Mines | Core integrity fell below 50% 392 | -10/Mines | Core integrity fell below 20% 393 | -10/Mines | Destroyed by D-53 Grenadier with Mini Grenade Launcher Last Messages --------------- 00371_ Acquired 10 matter. 00372_ Terrain Scanner destroyed. 00372_ System corrupted by crushing effect (+2). 00372_ as-61147 destroyed. 00372_ Lgt. Assault Rifle destroyed. 00372_ Assault Rifle destroyed. 00372_ as-78808 destroyed. 00372_ as-08939 destroyed. 00374_ as-52467 destroyed. 00375_ Lgt. Ion Engine destroyed. 00376_ as-81875 destroyed. 00383_ Lgt. Treads destroyed. 00383_ R-06 Scavenger destroyed. 00383_ Lgt. Assault Rifle destroyed. 00385_ Grenade Launcher destroyed. 00386_ System corrupted: Component data lost. 00387_ Lgt. Treads destroyed. 00387_ as-75937 destroyed. 00390_ The unstable cave ceiling collapses. 00391_ as-19028 destroyed. Map ----- +----------------------------------------------------+ | | | | | | | | | ??????????????##??????#??????????????????????????? | | ?????????????????????????????????????????????????? | | ????????????????####?????????????????????????????? | | ?##########????## ##????????????????????????????? | | """ #???## #????????????????????????????? | | """ #???# #??????#??#??????????????????? | | """ #???# ##????????????????????????????? | | #??### #?????????#???????????????????? | | #????# #?#???????????????????????????? | | #?#?## ##?????#??????????????????????? | | #??## ##?????#???????#?????????????? | | #??# ###?????? ?? ??????????????? | | ##### #####??# #?????????? #??????????????? | | ????# #??????# #?#????? ?# ##?????????????? | | ????# #####??## ##???????#; ???????????????? | | ##### ## ###?## #####?? ;#?????#??????????? | | ## # #### # ### #??#??????????????? | | ## #;%## ##?????????????? | | # %%%% #?????????????? | | ####### k ;#?? ?????????????? | | ????#?# ## ;#?????????????????? | | ??????## ###### @ #??????#???????????? | | ???????####????## #??????????????????? | | ???????????????# #??????????????????? | | ????????#??????# ##?????#????????????? | | ???????????????# #??????????????????? | | ?#?????????? ??## dd #???? ?????????????? | | ?????????????### #??????????????????? | | ??????????????# #? ????????????????? | | ??????????????## #??????????????????? | | ??????????????#% ## ##??????????????????? | | ?????????????? #?## ##? ?????????????????? | | ?????????"???? #?#?# ##????????????????????? | | ???????????????? #????# #?????????????????????? | | ?????????????????????#??# #??????????????????????? | | ?????????????????????????#???????????????????????? | | ?????????????????????????????????????????????????? | | ?????????????????????????????????????????????????? | | ?????????????????????????????????????????????????? | | ?????????????????????????????????????????????????? | | ?????????????????????????????????????????????????? | | ?????????????????????????????????????????????????? | | ?????????????????????????????????????????????????? | | ?????????????????????????????????????????????????? | | ?????????????????????????????????????????????????? | | ?????????????????????????????????????????????????? | +----------------------------------------------------+ Best States ------------- Heat Dissipation 25 Energy Generation 10 Energy Capacity 125 Matter Stores 300 Matter Capacity 300 Sight Range 16 Terrain Scan Range 14 Terrain Scan Density 10 Resistance: KI 35 Resistance: TH 35 Resistance: EX 35 Resistance: EM 35 Resistance: I 35 Resistance: S 35 Resistance: P 35 Evasion (%) 50 Recoil Reduction 2 Offensive Hacking 20 Item Schematics ----------------- None Robot Schematics ------------------ None Fabricated ------------ Nothing Alien Tech Used ----------------- None Achievements -------------- None Challenges ------------ None Game ------ Seed NeutronMolecularRefractor Manual? 0 Play Time 00:06:19 Cumulative 1652.7 hours Start 2024.01.11 @ 00:03:10 End 2024.01.11 @ 00:07:28 Sessions 1 Manual Loads 0 Difficulty Explorer Special Mode None Game No. 935 Rogue 62 Adventurer 0 Explorer 873 Win Type - Total 9 Types 9/0/0/0/0/0/0/0/0 Lore% 72 Gallery% 83 Achievement% 63 Wizard Run 0 Options --------- ASCII 0 Keyboard 0 Movement Mouse Keybinds 0 Fullscreen 1 Font 36/Smallcaps Map View 83x50 Tactical HUD 1 Map Filters NONE Filters NONE Steam 1 RUN: aa6b0b59-30ea-4bf0-beea-89a70dfdd5a8